Department family,Entity,Date,Expense type,Expense area,Supplier,Transaction number,Amount,Description,Supplier Post Code
Departmen of Health,NHS Business Services Authority,28/04/2017,Bank Charges,Prescription Pricing Division,ALLPAY LIMITED,0080079369,"34,107.19",DIRECT DEBIT MAR 107,HR1 3SE
Departmen of Health,NHS Business Services Authority,28/04/2017,Temporary Staff,Prescription Pricing Division,BROOK STREET (UK) LTD,0080079626,"25,199.86",Temp Staff,AL1 4ZX
Departmen of Health,NHS Business Services Authority,28/04/2017,Statutory Payments,Corporate Services,CABINET OFFICE CIVIL SERVICE PENSIONS,0080079638,"54,060.76",DEDUCTIONS APRIL 17,RG24 9NW
Departmen of Health,NHS Business Services Authority,28/04/2017,Envision IT / IS,Pensions Division,PAYMASTER (1836) LTD,0080079704,"48,103.69",Provision of IT Support services for,RH10 1UH
Department of Health,NHS Business Services Authority,28/04/2017,Pharmacy Contractors,Prescription Pricing ,,,"733,168,523.29",Payments to Pharmacy Contractors,
Department of Health,NHS Business Services Authority,28/04/2017,Pharmacy Contractors,Prescription Pricing ,,,"97,025,752.95",Payments to Pharmacy Contractors,
Departmen of Health,NHS Business Services Authority,25/04/2017,LAN Maintenance,Prescription Pricing Division,CAPITA BUSINESS SERVICES LTD,0080079554,"26,879.26",BOSS DUAL RUNNING FEB/MAR17,DL1 9HN
Departmen of Health,NHS Business Services Authority,25/04/2017,Minor Works,Corporate Services,DEEPSTORE,0080079605,"63,290.00",Supplier - Deepstore Records Management,CW7 2PA
Departmen of Health,NHS Business Services Authority,25/04/2017,Printing Charges (External),Prescription Pricing Division,THAMES CARD TECHNOLOGY LTD,0080079454,"22,805.66","Contract for the Production,",SS6 7UQ
Departmen of Health,NHS Business Services Authority,25/04/2017,Printing Charges (External),Prescription Pricing Division,THAMES CARD TECHNOLOGY LTD,0080079455,"39,027.87",P/O 18193,SS6 7UQ
Departmen of Health,NHS Business Services Authority,21/04/2017,Temporary Staff,Prescription Pricing Division,BROOK STREET (UK) LTD,0080079482,"26,540.09",Temp Staff,AL1 4ZX
Departmen of Health,NHS Business Services Authority,21/04/2017,Postage Charges,Prescription Pricing Division,ROYAL MAIL,0080078794,"29,583.44",AC 0912819049  PPCMedMat,S49 1HQ
Departmen of Health,NHS Business Services Authority,21/04/2017,Postage Charges,Prescription Pricing Division,ROYAL MAIL,0080078949,"31,447.89",AC 0912819049  PPCMedMat,S49 1HQ
Departmen of Health,NHS Business Services Authority,21/04/2017,Postage Charges,Prescription Pricing Division,ROYAL MAIL,0080078950,"25,161.78",AC 0912819048,S49 1HQ
Departmen of Health,NHS Business Services Authority,21/04/2017,Postage Charges,Prescription Pricing Division,ROYAL MAIL,0080079109,"28,908.00",AC 0912819049  EHIC EU,S49 1HQ
Departmen of Health,NHS Business Services Authority,21/04/2017,Postage Charges,Prescription Pricing Division,ROYAL MAIL,0080079110,"35,582.09",AC 0912819048,S49 1HQ
Departmen of Health,NHS Business Services Authority,19/04/2017,Software Licences,Prescription Pricing Division,COMPAREX UK LTD,0080079440,"91,743.88","Year 2, Oracle Licence and Support",HA1 3EL
Department of Health,NHS Business Services Authority,19/04/2017,Software Purchases,NHS Protect,INSIGHT DIRECT UK LTD,0050009717,"7,710.00",Visual analytics.  Processor Cores,UB8 1PH
Department of Health,NHS Business Services Authority,19/04/2017,Software Purchases,NHS Protect,INSIGHT DIRECT UK LTD,0050009717,"30,870.00",Visual analytics.  Processor Cores,UB8 1PH
Department of Health,NHS Business Services Authority,19/04/2017,Software Purchases,NHS Protect,INSIGHT DIRECT UK LTD,0050009717,"6,942.00",As per the attached,UB8 1PH
Department of Health,NHS Business Services Authority,19/04/2017,Software Purchases,NHS Protect,INSIGHT DIRECT UK LTD,0050009717,"36,666.00",DI and BI server upgrade from 4 to 8,UB8 1PH
Department of Health,NHS Business Services Authority,19/04/2017,Software Purchases,NHS Protect,INSIGHT DIRECT UK LTD,0050009717,"10,266.00",DI and BI server upgrade from 4 to 8,UB8 1PH
Department of Health,NHS Business Services Authority,19/04/2017,Software Purchases,NHS Protect,INSIGHT DIRECT UK LTD,0050009717,"1,686.00",LSF Scheduler.  8 cores.  Total renewal,UB8 1PH
Departmen of Health,NHS Business Services Authority,19/04/2017,Envision Payroll,Pensions Division,PAYMASTER (1836) LTD,0050033364,"780,464.89",charges apr 17,RH10 1UH
Department of Health,NHS Business Services Authority,19/04/2017,Software Licences,NHS Protect,SOFTWARE BOX LIMITED,0050009722,489.46,HPE iLO Advanced including 3yr 24x7,YO61 1ET
Department of Health,NHS Business Services Authority,19/04/2017,Software Licences,NHS Protect,SOFTWARE BOX LIMITED,0050009722,63.97,10 Way IEC (C13) Socket Horizontal PDU,YO61 1ET
Department of Health,NHS Business Services Authority,19/04/2017,Software Licences,NHS Protect,SOFTWARE BOX LIMITED,0050009722,"2,410.20",MFM1T02A-SR - Mellanox SFP+ optical,YO61 1ET
Department of Health,NHS Business Services Authority,19/04/2017,Software Licences,NHS Protect,SOFTWARE BOX LIMITED,0050009722,22.61,Cat6 U/UTP 24 AWG Flush Moulded Patch,YO61 1ET
Department of Health,NHS Business Services Authority,19/04/2017,Software Licences,NHS Protect,SOFTWARE BOX LIMITED,0050009722,115.02,LC-LC Duplex 50/125 OM3 Multimode Fibre,YO61 1ET
Department of Health,NHS Business Services Authority,19/04/2017,Software Licences,NHS Protect,SOFTWARE BOX LIMITED,0050009722,"3,982.39",HPE 3 year Proactive Care 24x7 with DMR,YO61 1ET
Department of Health,NHS Business Services Authority,19/04/2017,Software Licences,NHS Protect,SOFTWARE BOX LIMITED,0050009722,489.46,HPE iLO Advanced including 3yr 24x7,YO61 1ET
Department of Health,NHS Business Services Authority,19/04/2017,Software Licences,NHS Protect,SOFTWARE BOX LIMITED,0050009722,"1,364.54","Mellanox� module, ETH 1GbE, 1Gb/s, SFP,",YO61 1ET
Department of Health,NHS Business Services Authority,19/04/2017,Software Licences,NHS Protect,SOFTWARE BOX LIMITED,0050009722,"2,391.66",Mellanox� SFP+ optical module for,YO61 1ET
Department of Health,NHS Business Services Authority,19/04/2017,Software Licences,NHS Protect,SOFTWARE BOX LIMITED,0050009722,"4,421.17","Hardware plus 1 year 8x5, Forticare and",YO61 1ET
Department of Health,NHS Business Services Authority,19/04/2017,Software Licences,NHS Protect,SOFTWARE BOX LIMITED,0050009722,"3,392.82","1 Year 4-Hour Delivery Bundle,",YO61 1ET
Department of Health,NHS Business Services Authority,19/04/2017,Software Licences,NHS Protect,SOFTWARE BOX LIMITED,0050009722,309.00,"L2 Switch - 24 x GE RJ45 ports, 2 x GE",YO61 1ET
Department of Health,NHS Business Services Authority,19/04/2017,Software Licences,NHS Protect,SOFTWARE BOX LIMITED,0050009722,378.22,1 Year On-Site 4 hours Full Package,YO61 1ET
Department of Health,NHS Business Services Authority,19/04/2017,Software Licences,NHS Protect,SOFTWARE BOX LIMITED,0050009722,"2,061.65",HPE ProLiant DL360 Gen9 8SFF CTO Server,YO61 1ET
Department of Health,NHS Business Services Authority,19/04/2017,Software Licences,NHS Protect,SOFTWARE BOX LIMITED,0050009722,"1,374.43",HPE DL360 Gen9 Intel Xeon E5-2630v3,YO61 1ET
Department of Health,NHS Business Services Authority,19/04/2017,Software Licences,NHS Protect,SOFTWARE BOX LIMITED,0050009722,301.58,HPE 16GB (1x16GB) Dual Rank x4,YO61 1ET
Department of Health,NHS Business Services Authority,19/04/2017,Software Licences,NHS Protect,SOFTWARE BOX LIMITED,0050009722,"1,087.68",HPE 500W Flex Slot Platinum Hot Plug,YO61 1ET
Department of Health,NHS Business Services Authority,19/04/2017,Software Licences,NHS Protect,SOFTWARE BOX LIMITED,0050009722,556.20,HPE Smart Array P440ar/2GB FBWC 12Gb,YO61 1ET
Department of Health,NHS Business Services Authority,19/04/2017,Software Licences,NHS Protect,SOFTWARE BOX LIMITED,0050009722,257.09,HPE DL360 Gen9 SFF Smart Array,YO61 1ET
Department of Health,NHS Business Services Authority,19/04/2017,Software Licences,NHS Protect,SOFTWARE BOX LIMITED,0050009722,632.83,HPE 300GB SAS 12G Enterprise 10K SFF,YO61 1ET
Department of Health,NHS Business Services Authority,19/04/2017,Software Licences,NHS Protect,SOFTWARE BOX LIMITED,0050009722,687.22,HPE Ethernet 10Gb 2-port 546SFP+ Adapter,YO61 1ET
Department of Health,NHS Business Services Authority,19/04/2017,Software Licences,NHS Protect,SOFTWARE BOX LIMITED,0050009722,160.68,HPE DVD/USB Universal Media Bay Kit,YO61 1ET
Department of Health,NHS Business Services Authority,19/04/2017,Software Licences,NHS Protect,SOFTWARE BOX LIMITED,0050009722,321.36,HPE 1U Small Form Factor Ball Bearing,YO61 1ET
Department of Health,NHS Business Services Authority,19/04/2017,Software Licences,NHS Protect,SOFTWARE BOX LIMITED,0050009722,93.94,HPE 1U Cable Management Arm for Ball,YO61 1ET
Department of Health,NHS Business Services Authority,19/04/2017,Software Licences,NHS Protect,SOFTWARE BOX LIMITED,0050009722,"3,982.39",HPE 3 year Proactive Care 24x7 with DMR,YO61 1ET
Department of Health,NHS Business Services Authority,19/04/2017,Software Licences,NHS Protect,SOFTWARE BOX LIMITED,0050009722,115.02,LC-LC Duplex 50/125 OM3 Multimode Fibre,YO61 1ET
Department of Health,NHS Business Services Authority,19/04/2017,Software Licences,NHS Protect,SOFTWARE BOX LIMITED,0050009722,22.61,Cat6 U/UTP 24 AWG Flush Moulded Patch,YO61 1ET
Department of Health,NHS Business Services Authority,19/04/2017,Software Licences,NHS Protect,SOFTWARE BOX LIMITED,0050009722,"13,121.87","SwitchX-2 based 10GbE, 1U Open",YO61 1ET
Department of Health,NHS Business Services Authority,19/04/2017,Software Licences,NHS Protect,SOFTWARE BOX LIMITED,0050009722,574.74,Mellanox Technical Support and Warranty,YO61 1ET
Department of Health,NHS Business Services Authority,19/04/2017,Software Licences,NHS Protect,SOFTWARE BOX LIMITED,0050009722,"1,364.54","Mellanox� module, ETH 1GbE, 1Gb/s, SFP,",YO61 1ET
Department of Health,NHS Business Services Authority,19/04/2017,Software Licences,NHS Protect,SOFTWARE BOX LIMITED,0050009722,"2,391.66",Mellanox� SFP+ optical module for,YO61 1ET
Department of Health,NHS Business Services Authority,19/04/2017,Software Licences,NHS Protect,SOFTWARE BOX LIMITED,0050009722,"4,421.17","Hardware plus 1 year 8x5, Forticare and",YO61 1ET
Department of Health,NHS Business Services Authority,19/04/2017,Software Licences,NHS Protect,SOFTWARE BOX LIMITED,0050009722,"3,392.82","1 Year 4-Hour Delivery Bundle,",YO61 1ET
Department of Health,NHS Business Services Authority,19/04/2017,Software Licences,NHS Protect,SOFTWARE BOX LIMITED,0050009722,309.00,"L2 Switch - 24 x GE RJ45 ports, 2 x GE",YO61 1ET
Department of Health,NHS Business Services Authority,19/04/2017,Software Licences,NHS Protect,SOFTWARE BOX LIMITED,0050009722,"13,121.87","SwitchX-2 based 10GbE, 1U Open",YO61 1ET
Department of Health,NHS Business Services Authority,19/04/2017,Software Licences,NHS Protect,SOFTWARE BOX LIMITED,0050009722,574.74,Mellanox Technical Support and Warranty,YO61 1ET
Department of Health,NHS Business Services Authority,19/04/2017,Software Licences,NHS Protect,SOFTWARE BOX LIMITED,0050009722,378.22,1 Year On-Site 4 hours Full Package,YO61 1ET
Department of Health,NHS Business Services Authority,19/04/2017,Software Licences,NHS Protect,SOFTWARE BOX LIMITED,0050009722,"2,061.65",HPE ProLiant DL360 Gen9 8SFF CTO Server,YO61 1ET
Department of Health,NHS Business Services Authority,19/04/2017,Software Licences,NHS Protect,SOFTWARE BOX LIMITED,0050009722,"1,374.43",HPE DL360 Gen9 Intel Xeon E5-2630v3,YO61 1ET
Department of Health,NHS Business Services Authority,19/04/2017,Software Licences,NHS Protect,SOFTWARE BOX LIMITED,0050009722,301.58,HPE 16GB (1x16GB) Dual Rank x4,YO61 1ET
Department of Health,NHS Business Services Authority,19/04/2017,Software Licences,NHS Protect,SOFTWARE BOX LIMITED,0050009722,"1,087.68",HPE 500W Flex Slot Platinum Hot Plug,YO61 1ET
Department of Health,NHS Business Services Authority,19/04/2017,Software Licences,NHS Protect,SOFTWARE BOX LIMITED,0050009722,556.20,HPE Smart Array P440ar/2GB FBWC 12Gb,YO61 1ET
Department of Health,NHS Business Services Authority,19/04/2017,Software Licences,NHS Protect,SOFTWARE BOX LIMITED,0050009722,257.09,HPE DL360 Gen9 SFF Smart Array,YO61 1ET
Department of Health,NHS Business Services Authority,19/04/2017,Software Licences,NHS Protect,SOFTWARE BOX LIMITED,0050009722,632.83,HPE 300GB SAS 12G Enterprise 10K SFF,YO61 1ET
Department of Health,NHS Business Services Authority,19/04/2017,Software Licences,NHS Protect,SOFTWARE BOX LIMITED,0050009722,687.22,HPE Ethernet 10Gb 2-port 546SFP+ Adapter,YO61 1ET
Department of Health,NHS Business Services Authority,19/04/2017,Software Licences,NHS Protect,SOFTWARE BOX LIMITED,0050009722,160.68,HPE DVD/USB Universal Media Bay Kit,YO61 1ET
Department of Health,NHS Business Services Authority,19/04/2017,Software Licences,NHS Protect,SOFTWARE BOX LIMITED,0050009722,321.36,HPE 1U Small Form Factor Ball Bearing,YO61 1ET
Department of Health,NHS Business Services Authority,19/04/2017,Software Licences,NHS Protect,SOFTWARE BOX LIMITED,0050009722,93.94,HPE 1U Cable Management Arm for Ball,YO61 1ET
Departmen of Health,NHS Business Services Authority,19/04/2017,Rent,Supply Chain Management Division,THE COAL AUTHORITY,0080079442,"27,000.00",Rent 01 Apr  30 Jun 17,NG18 4RG
Departmen of Health,NHS Business Services Authority,19/04/2017,Temporary Staff,Pensions Division,VALTECH LTD,0080079449,"196,755.00",Digital Outcomes and Specialist,N1 8AF
Departmen of Health,NHS Business Services Authority,19/04/2017,Query,Pensions Division,VALTECH LTD,0080079450,"312,315.00",Total Reward Statement Acess Private,N1 8AF
Department of Health,NHS Business Services Authority,15/04/2017,Statutory Payments,Corporate Services,NHS Pension Scheme,,"843,645.29",DEDUCTIONS April 17,
Departmen of Health,NHS Business Services Authority,13/04/2017,Building Works,Corporate Services,AARAN DESIGN LTD,0080079321,"87,406.80",Stella House refurbishment as per the,DH3 1QT
Departmen of Health,NHS Business Services Authority,13/04/2017,Temporary Staff,Prescription Pricing Division,BROOK STREET (UK) LTD,0080079143,"30,435.01",Temp Staff,AL1 4ZX
Departmen of Health,NHS Business Services Authority,13/04/2017,Temporary Staff,Prescription Pricing Division,CAPITA BUSINESS SERVICES LTD,0080079308,"24,241.72",Network Engineer - Consultant,DL1 9HN
Departmen of Health,NHS Business Services Authority,13/04/2017,Temporary Staff,Corporate Services,CAPITA BUSINESS SERVICES LTD,0080079309,"24,258.10",Project Manager - Senior Consultant,DL1 9HN
Departmen of Health,NHS Business Services Authority,13/04/2017,Temporary Staff,Corporate Services,CAPITA BUSINESS SERVICES LTD,0080079311,"63,120.56",Network Engineer - Consultant,DL1 9HN
Department of Health,NHS Business Services Authority,11/04/2017,Query,NHS Protect,CLICK TRAVEL LTD,0080000181,"15,039.00",TRAVEL MARCH 17,B1 1TT
Department of Health,NHS Business Services Authority,11/04/2017,Query,NHS Protect,CLICK TRAVEL LTD,0080000181,"14,576.65",TRAVEL MARCH 17,B1 1TT
Department of Health,NHS Business Services Authority,11/04/2017,Query,NHS Protect,CLICK TRAVEL LTD,0080000182,-292.50,NHS PORTECT TRAVEL MARCH 17,B1 1TT
Department of Health,NHS Business Services Authority,11/04/2017,Query,NHS Protect,CLICK TRAVEL LTD,0080000182,-84.55,NHS PORTECT TRAVEL MARCH 17,B1 1TT
Departmen of Health,NHS Business Services Authority,11/04/2017,Postage Charges,Prescription Pricing Division,ROYAL MAIL,0080078735,"39,402.05",AC 0912819049  TC,S49 1HQ
Departmen of Health,NHS Business Services Authority,11/04/2017,Postage Charges,Prescription Pricing Division,ROYAL MAIL,0080078795,"30,896.34",AC 48 account,S49 1HQ
Department of Health,NHS Business Services Authority,11/04/2017,Stationery Charges,NHS Protect,TREBLE 5 TREBLE 1 LTD,0050009694,"59,948.40",TREBLE 5 TREBLE 1 LIMITED,SM6 6BG
Departmen of Health,NHS Business Services Authority,07/04/2017,Temporary Staff,Prescription Pricing Division,BROOK STREET (UK) LTD,0080078989,"25,856.09",Temp Staff,AL1 4ZX
Departmen of Health,NHS Business Services Authority,07/04/2017,Travel and Accommodation,Corporate Services,CLICK TRAVEL LIMITED,0050033334,"71,772.12",TRAVEL MARCH 17,B1 1TT
Departmen of Health,NHS Business Services Authority,07/04/2017,Temporary Staff,Corporate Services,INTEGRATED HEALTH PROJECTS,0080078988,"399,230.83",BSA MW 6.24 (PMI 022) Bridge House,HP2 7TR
Departmen of Health,NHS Business Services Authority,07/04/2017,General Maintenance,NHS Protect,INTEGRATED HEALTH PROJECTS,0080078988,718.50,difference,HP2 7TR
Departmen of Health,NHS Business Services Authority,07/04/2017,Temporary Staff,Pensions Division,PAYMASTER (1836) LTD,0080079000,"29,079.00",Equiniti Paymaster IT services to to,RH10 1UH
Departmen of Health,NHS Business Services Authority,07/04/2017,Professional Fees,Pensions Division,PAYMASTER (1836) LTD,0080079001,"26,932.94",Exit activity related to the Pensions,RH10 1UH
Departmen of Health,NHS Business Services Authority,07/04/2017,Envision Other,Corporate Services,PAYMASTER (1836) LTD,0080079007,"42,275.00",NHSBSA Pensions (NHSP) has requested,RH10 1UH
Departmen of Health,NHS Business Services Authority,07/04/2017,Temporary Staff,Pensions Division,PAYMASTER (1836) LTD,0080079043,"42,803.00",Fixed price development of workpackage,RH10 1UH
Departmen of Health,NHS Business Services Authority,07/04/2017,Temporary Staff,Pensions Division,PAYMASTER (1836) LTD,0080079044,"65,000.00",Equiniti IT services to deliver results,RH10 1UH
Departmen of Health,NHS Business Services Authority,07/04/2017,Temporary Staff,Pensions Division,PAYMASTER (1836) LTD,0080079047,"250,000.00",Equiniti IT services Equiniti IT,RH10 1UH
Departmen of Health,NHS Business Services Authority,07/04/2017,Temporary Staff,Pensions Division,PAYMASTER (1836) LTD,0080079048,"170,000.00",IT Development Services to  progress,RH10 1UH
Departmen of Health,NHS Business Services Authority,07/04/2017,Temporary Staff,Pensions Division,PAYMASTER (1836) LTD,0080079049,"318,202.00",EP IT Development Services - The,RH10 1UH
Departmen of Health,NHS Business Services Authority,07/04/2017,Temporary Staff,Pensions Division,PAYMASTER (1836) LTD,0080079051,"140,000.00",Equiniti IT services to undertake,RH10 1UH
Departmen of Health,NHS Business Services Authority,07/04/2017,Temporary Staff,Pensions Division,PAYMASTER (1836) LTD,0080079052,"25,078.00",Equiniti IT services to deliver small,RH10 1UH
Departmen of Health,NHS Business Services Authority,07/04/2017,Licences Capital,Pensions Division,PAYMASTER (1836) LTD,0080079057,"647,000.00",Equiniti (EQ) are to provide the NHSBSA,RH10 1UH
Departmen of Health,NHS Business Services Authority,07/04/2017,IT,Pensions Division,PAYMASTER (1836) LTD,0080079060,"2,318,702.00",Equiniti to procure and provide IT,RH10 1UH
Departmen of Health,NHS Business Services Authority,07/04/2017,Licences Capital,Pensions Division,PAYMASTER (1836) LTD,0080079062,"715,802.86",Equiniti to procure and provide IT,RH10 1UH
Departmen of Health,NHS Business Services Authority,07/04/2017,Envision Other,Pensions Division,PAYMASTER (1836) LTD,0080079064,"60,000.00",EP support -,RH10 1UH
Departmen of Health,NHS Business Services Authority,07/04/2017,Photocopier Rental,Prescription Pricing Division,XEROX FINANCE,0080079032,"34,345.33",RENT 010517300418,BN13 1WX
Department of Health,NHS Business Services Authority,06/04/2017,Pharmacy Contractors,Prescription Pricing ,,,"214,048.62",Payments to Pharmacy Contractors,
Departmen of Health,NHS Business Services Authority,05/04/2017,Rates Charges,Corporate Services,NEWCASTLE CITY COUNCIL,0050033337,"25,789.43",STELLA HOUSE,NE99 2PT
Departmen of Health,NHS Business Services Authority,05/04/2017,Rates Charges,Corporate Services,NEWCASTLE CITY COUNCIL,0050033338,"36,699.73",BRIDGE HOUSE,NE99 2PT
Department of Health,NHS Business Services Authority,04/04/2017,Pharmacy Contractors,Prescription Pricing ,,,"142,328.36",Payments to Pharmacy Contractors,
Department of Health,NHS Business Services Authority,03/04/2017,Pharmacy Contractors,Prescription Pricing ,,,"634,179,554.31",Payments to Pharmacy Contractors,
Department of Health,NHS Business Services Authority,01/04/2017,Dental Contractors,Dental Services ,,,"185,283,939.00",Payments to Dental Contractors,
